fUSD/lending_fUSD_20250611
["ID","MTS","AMOUNT","RATE_DAILY","PERIOD"]
[365450444,1749678665137,-344.67,0.00019671,2]
[365450445,1749678665147,-490.0,0.00019671,2]
[365450446,1749678665156,-470.0,0.00019671,2]
[365450447,1749678665166,-490.0,0.00019671,2]
[365450448,1749678665175,-490.0,0.00019671,2]
[365450449,1749678665185,-168.91,0.00019671,2]
[365450450,1749678665195,-490.0,0.00019671,2]
[365450451,1749678665204,-460.0,0.00019671,2]
[365450452,1749678665214,-490.0,0.00019671,2]
[365450453,1749678665223,-490.0,0.00019671,2]
[365450454,1749678665234,-470.0,0.00019671,2]
[365450455,1749678665243,-490.0,0.00019671,2]
[365450456,1749678665253,-271.86,0.00019671,2]
[365450457,1749678665262,-490.0,0.00019671,2]
[365450458,1749678665272,-634.16,0.00019671,2]
[365450459,1749678665281,-688.74,0.00019671,2]
[365450460,1749678665291,-490.0,0.00019671,2]
[365450461,1749678665301,-470.0,0.00019671,2]
[365450462,1749678665311,-490.0,0.00019671,2]
[365450463,1749678665320,-613.51,0.00019671,2]
[365450464,1749678665330,-490.0,0.00019671,2]
[365450465,1749678665339,-490.0,0.00019671,2]
[365450466,1749678665349,-490.0,0.00019671,2]
[365450467,1749678665358,-490.0,0.00019671,2]
[365450468,1749678665368,-462.32,0.00019671,2]
[365450469,1749678665377,-596.24,0.00019671,2]
[365450470,1749678665387,-490.0,0.00019671,2]
[365450471,1749678665397,-490.0,0.00019671,2]
[365450472,1749678665407,-490.0,0.00019671,2]
[365450473,1749678665417,-490.0,0.00019671,2]
[365450474,1749678665426,-490.0,0.00019671,2]
[365450475,1749678665436,-490.0,0.00019671,2]
[365450476,1749678665445,-490.0,0.00019671,2]
[365450477,1749678665455,-490.0,0.00019671,2]
[365450478,1749678665467,-195.48,0.00019671,2]
[365450479,1749678665477,-168.63925568,0.00019671,2]
[365450480,1749678665487,-755.28,0.00019671,2]
[365450481,1749678665497,-209.05090006,0.00019671,2]
[365450482,1749678665507,-490.0,0.00019671,2]
[365450483,1749678665517,-513.74,0.00019671,2]
[365450484,1749678665527,-490.0,0.00019671,2]
[365450485,1749678665536,-490.0,0.00019671,2]
[365450486,1749678665547,-490.0,0.00019671,2]
[365450487,1749678665557,-490.0,0.00019671,2]
[365450488,1749678665567,-777.49,0.00019671,2]
[365450489,1749678665577,-490.0,0.00019671,2]
[365450490,1749678665587,-490.0,0.00019671,2]
[365450491,1749678665597,-490.0,0.00019671,2]
[365450492,1749678665607,-565.5,0.00019671,2]
[365450493,1749678665616,-490.0,0.00019671,2]
[365450494,1749678665626,-262.2,0.00019671,2]
[365450495,1749678665636,-490.0,0.00019671,2]
[365450496,1749678665646,-553.19,0.00019671,2]
[365450497,1749678665656,-490.0,0.00019671,2]
[365450498,1749678665665,-490.0,0.00019671,2]
[365450499,1749678665675,-543.0,0.00019671,2]
[365450500,1749678665684,-490.0,0.00019671,2]
[365450501,1749678665694,-490.0,0.00019671,2]
[365450502,1749678665704,-490.0,0.00019671,2]
[365450503,1749678665713,-564.54,0.00019671,2]
[365450504,1749678665723,-357.76,0.00019671,2]
[365450505,1749678665733,-349.64646574,0.00019671,2]
[365450506,1749678665743,-440.0,0.00019671,2]
[365450507,1749678665754,-490.0,0.00019671,2]
[365450508,1749678665764,-440.0,0.00019671,2]
[365450509,1749678665774,-490.0,0.00019671,2]
[365450510,1749678665784,-490.0,0.00019671,2]
[365450511,1749678665793,-251.07,0.00019671,2]
[365450512,1749678665803,-406.98,0.00019671,2]
[365450513,1749678665812,-490.0,0.00019671,2]
[365450514,1749678665822,-490.0,0.00019671,2]
[365450515,1749678665832,-440.0,0.00019671,2]
[365450516,1749678665842,-490.0,0.00019671,2]
[365450517,1749678665852,-490.0,0.00019671,2]
[365450518,1749678665861,-490.0,0.00019671,2]
[365450519,1749678665871,-490.0,0.00019671,2]
[365450520,1749678665881,-518.11,0.00019671,2]
[365450521,1749678665891,-490.0,0.00019671,2]
[365450522,1749678665901,-182.82,0.00019671,2]
[365450523,1749678665911,-490.0,0.00019671,2]
[365450524,1749678665921,-827.92,0.00019671,2]
[365450525,1749678665931,-490.0,0.00019671,2]
[365450526,1749678665941,-490.0,0.00019671,2]
[365450527,1749678665951,-674.37,0.00019671,2]
[365450528,1749678665960,-490.0,0.00019671,2]
[365450529,1749678665970,-867.52,0.00019671,2]
[365450530,1749678665980,-636.57,0.00019671,2]
[365450531,1749678665991,-450.0,0.00019671,2]
[365450532,1749678666001,-490.0,0.00019671,2]
[365450533,1749678666011,-490.0,0.00019671,2]
[365450534,1749678666020,-490.0,0.00019671,2]
[365450535,1749678666030,-667.41,0.00019671,2]
[365450536,1749678666040,-398.37654424,0.00019671,2]
[365450537,1749678666050,-499.58,0.00019671,2]
[365450538,1749678666059,-490.0,0.00019671,2]
[365450539,1749678666069,-490.0,0.00019671,2]
[365450540,1749678666079,-460.0,0.00019671,2]
[365450541,1749678666089,-490.0,0.00019671,2]
[365450542,1749678666099,-490.0,0.00019671,2]
[365450543,1749678666108,-490.0,0.00019671,2]
[365450544,1749678666118,-490.0,0.00019671,2]
[365450545,1749678666127,-546.75,0.00019671,2]
[365450546,1749678666137,-450.77,0.00019671,2]
[365450547,1749678666147,-490.0,0.00019671,2]
[365450548,1749678666157,-490.0,0.00019671,2]
[365450549,1749678666166,-490.0,0.00019671,2]
[365450550,1749678666176,-490.0,0.00019671,2]
[365450551,1749678666186,-450.0,0.00019671,2]
[365450552,1749678666196,-490.0,0.00019671,2]
[365450553,1749678666206,-490.0,0.00019671,2]
[365450554,1749678666216,-1354.16,0.00019671,2]
[365450555,1749678666226,-527.92,0.00019671,2]
[365450556,1749678666237,-490.0,0.00019671,2]
[365450557,1749678666247,-490.0,0.00019671,2]
[365450558,1749678666256,-490.0,0.00019671,2]
[365450559,1749678666266,-460.0,0.00019671,2]
[365450560,1749678666275,-490.0,0.00019671,2]
[365450561,1749678666285,-490.0,0.00019671,2]
[365450562,1749678666295,-450.0,0.00019671,2]
[365450563,1749678666305,-450.0,0.00019671,2]
[365450564,1749678666315,-490.0,0.00019671,2]
[365450565,1749678666325,-509.22,0.00019671,2]
[365450566,1749678666335,-490.0,0.00019671,2]
[365450567,1749678666344,-450.0,0.00019671,2]
[365450568,1749678666354,-490.0,0.00019671,2]
[365450569,1749678666364,-490.0,0.00019671,2]
[365450570,1749678666374,-490.0,0.00019671,2]
[365450571,1749678666385,-490.0,0.00019671,2]
[365450572,1749678666395,-490.0,0.00019671,2]
[365450573,1749678666405,-490.0,0.00019671,2]
[365450574,1749678666414,-490.0,0.00019671,2]
[365450575,1749678666424,-490.0,0.00019671,2]
[365450576,1749678666434,-844.35,0.00019671,2]
[365450577,1749678666444,-490.0,0.00019671,2]
[365450578,1749678666453,-490.0,0.00019671,2]
[365450579,1749678666464,-490.0,0.00019671,2]
[365450580,1749678666473,-490.0,0.00019671,2]
[365450581,1749678666483,-637.14,0.00019671,2]
[365450582,1749678666492,-490.0,0.00019671,2]
[365450583,1749678666502,-490.0,0.00019671,2]
[365450584,1749678666512,-210.0,0.00019671,2]
[365450585,1749678666522,-490.0,0.00019671,2]
[365450586,1749678666532,-490.0,0.00019671,2]
[365450587,1749678666544,-663.88,0.00019671,2]
[365450588,1749678666557,-490.0,0.00019671,2]
[365450589,1749678666567,-544.56,0.00019671,2]
[365450590,1749678666577,-490.0,0.00019671,2]
[365450591,1749678666586,-490.0,0.00019671,2]
[365450592,1749678666596,-490.0,0.00019671,2]
[365450593,1749678666606,-490.0,0.00019671,2]
[365450594,1749678666616,-450.0,0.00019671,2]
[365450595,1749678666627,-450.0,0.00019671,2]
[365450596,1749678666638,-554.35,0.00019671,2]
[365450597,1749678666647,-490.0,0.00019671,2]
[365450598,1749678666657,-450.0,0.00019671,2]
[365450599,1749678666668,-450.0,0.00019671,2]
[365450600,1749678666853,-605.04,0.00019671,2]
[365450601,1749678666863,-865.59,0.00019671,2]
[365450602,1749678666872,-490.0,0.00019671,2]
[365450603,1749678666881,-450.0,0.00019671,2]
[365450604,1749678666890,-549.17,0.00019671,2]
[365450605,1749678666899,-490.0,0.00019671,2]
[365450606,1749678666908,-490.0,0.00019671,2]
[365450607,1749678666918,-777.01,0.00019671,2]
[365450608,1749678666927,-490.0,0.00019671,2]
[365450609,1749678666935,-490.0,0.00019671,2]
[365450610,1749678666944,-490.0,0.00019671,2]
[365450611,1749678666953,-490.0,0.00019671,2]
[365450612,1749678666962,-490.0,0.00019671,2]
[365450613,1749678666971,-490.0,0.00019671,2]
[365450614,1749678666981,-490.0,0.00019671,2]
[365450615,1749678666990,-490.0,0.00019671,2]
[365450616,1749678666998,-490.0,0.00019671,2]
[365450617,1749678667007,-490.0,0.00019671,2]
[365450618,1749678667017,-450.0,0.00019671,2]
[365450619,1749678667026,-460.0,0.00019671,2]
[365450620,1749678667035,-450.0,0.00019671,2]
[365450621,1749678667044,-490.0,0.00019671,2]
[365450622,1749678667053,-490.0,0.00019671,2]
[365450623,1749678667062,-490.0,0.00019671,2]
[365450624,1749678667071,-490.0,0.00019671,2]
[365450625,1749678667080,-460.0,0.00019671,2]
[365450626,1749678667089,-490.0,0.00019671,2]
[365450627,1749678667099,-668.65,0.00019671,2]
[365450628,1749678667108,-490.0,0.00019671,2]
[365450629,1749678667117,-607.28,0.00019671,2]
[365450630,1749678667126,-1196.83,0.00019671,2]
[365450631,1749678667135,-490.0,0.00019671,2]
[365450632,1749678667145,-250.0,0.00019671,2]
[365450633,1749678667154,-490.0,0.00019671,2]
[365450634,1749678667163,-490.0,0.00019671,2]
[365450635,1749678667171,-490.0,0.00019671,2]
[365450636,1749678667181,-737.98,0.00019671,2]
[365450637,1749678667190,-490.0,0.00019671,2]
[365450638,1749678667199,-490.0,0.00019671,2]
[365450639,1749678667207,-692.2,0.00019671,2]
[365450640,1749678667216,-285.84638778,0.00019671,2]
[365450641,1749678667225,-450.0,0.00019671,2]
[365450642,1749678667235,-490.0,0.00019671,2]
[365450643,1749678667245,-1428.51,0.00019671,2]
[365450644,1749678667254,-490.0,0.00019671,2]
[365450645,1749678667263,-490.0,0.00019671,2]
[365450646,1749678667272,-725.83,0.00019671,2]
[365450647,1749678667281,-490.0,0.00019671,2]
[365450648,1749678667290,-1172.69,0.00019671,2]
[365450649,1749678667300,-490.0,0.00019671,2]
[365450650,1749678667309,-490.0,0.00019671,2]
[365450651,1749678667318,-490.0,0.00019671,2]
[365450652,1749678667327,-954.88,0.00019671,2]
[365450653,1749678667337,-490.0,0.00019671,2]
[365450654,1749678667346,-1033.7,0.00019671,2]
[365450655,1749678667356,-610.84,0.00019671,2]
[365450656,1749678667365,-490.0,0.00019671,2]
[365450657,1749678667374,-1106.22,0.00019671,2]
[365450658,1749678667383,-490.0,0.00019671,2]
[365450659,1749678667392,-450.0,0.00019671,2]
[365450660,1749678667402,-450.0,0.00019671,2]
[365450661,1749678667412,-490.0,0.00019671,2]
[365450662,1749678667421,-1395.16,0.00019671,2]
[365450663,1749678667431,-906.51,0.00019671,2]
[365450664,1749678667440,-810.65,0.00019671,2]
[365450665,1749678667449,-734.52,0.00019671,2]
[365450666,1749678667459,-490.0,0.00019671,2]
[365450667,1749678667472,-450.0,0.00019671,2]
[365450668,1749678667482,-8016.81,0.00019671,2]
[365450669,1749678667491,-1444.079842,0.00019671,2]
[365450670,1749678667501,-450.0,0.00019671,2]
[365450671,1749678667512,-490.0,0.00019671,2]
[365450672,1749678667521,-5669.84,0.00019671,2]
[365450673,1749678667530,-3267.52,0.00019671,2]
[365450674,1749678667540,-490.0,0.00019671,2]
[365450675,1749678667551,-490.0,0.00019671,2]
[365450676,1749678667562,-355.41374328,0.00019671,2]
[365450677,1749678667572,-646.78,0.00019671,2]
[365450678,1749678667581,-490.0,0.00019671,2]
[365450679,1749678667591,-490.0,0.00019671,2]
[365450680,1749678667600,-490.0,0.00019671,2]
[365450681,1749678667609,-1213.2,0.00019671,2]
[365450682,1749678667618,-490.0,0.00019671,2]
[365450683,1749678667628,-490.0,0.00019671,2]
[365450684,1749678667638,-2370.31,0.00019671,2]
[365450685,1749678667647,-490.0,0.00019671,2]
[365450686,1749678667657,-490.0,0.00019671,2]
[365450687,1749678667666,-727.13,0.00019671,2]
[365450688,1749678667675,-490.0,0.00019671,2]
[365450689,1749678667684,-508.98,0.00019671,2]
[365450690,1749678667693,-490.0,0.00019671,2]
[365450691,1749678667703,-490.0,0.00019671,2]
[365450692,1749678667712,-1084.2,0.00019671,2]
[365450693,1749678667721,-490.0,0.00019671,2]
[365450694,1749678667732,-1064.49,0.00019671,2]
[365450695,1749678667742,-490.0,0.00019671,2]
[365450696,1749678667751,-490.0,0.00019671,2]
[365450697,1749678667761,-490.0,0.00019671,2]
[365450698,1749678667771,-1267.36,0.00019671,2]
[365450699,1749678667780,-1127.66,0.00019671,2]
[365450700,1749678667789,-887.99,0.00019671,2]
[365450701,1749678667798,-151.0,0.00019671,2]
[365450702,1749678667808,-1260.78,0.00019671,2]
[365450703,1749678667816,-490.0,0.00019671,2]
[365450704,1749678667825,-2493.06,0.00019671,2]
[365450705,1749678667834,-490.0,0.00019671,2]
[365450706,1749678667843,-490.0,0.00019671,2]
[365450707,1749678667853,-1236.85,0.00019671,2]
[365450708,1749678667862,-490.0,0.00019671,2]
[365450709,1749678667870,-490.0,0.00019671,2]
[365450710,1749678667879,-490.0,0.00019671,2]
[365450711,1749678667888,-490.0,0.00019671,2]
[365450712,1749678667897,-490.0,0.00019671,2]
[365450713,1749678667907,-490.0,0.00019671,2]
[365450714,1749678667916,-490.0,0.00019671,2]
[365450715,1749678667925,-490.0,0.00019671,2]
[365450716,1749678667934,-490.0,0.00019671,2]
[365450717,1749678667943,-490.0,0.00019671,2]
[365450718,1749678667953,-490.0,0.00019671,2]
[365450719,1749678667962,-490.0,0.00019671,2]
[365450720,1749678667971,-2109.3,0.00019671,2]
[365450721,1749678667980,-490.0,0.00019671,2]
[365450722,1749678667990,-490.0,0.00019671,2]
[365450723,1749678667999,-490.0,0.00019671,2]
[365450724,1749678668009,-490.0,0.00019671,2]
[365450725,1749678668018,-3918.5,0.00019671,2]
[365450726,1749678668027,-490.0,0.00019671,2]
[365450727,1749678668036,-490.0,0.00019671,2]
[365450728,1749678668045,-490.0,0.00019671,2]
[365450729,1749678668054,-1574.82,0.00019671,2]
[365450730,1749678668064,-490.0,0.00019671,2]
[365450731,1749678668073,-1073.47,0.00019671,2]
[365450732,1749678668082,-490.0,0.00019671,2]
[365450733,1749678668091,-602.09,0.00019671,2]
[365450734,1749678668099,-490.0,0.00019671,2]
[365450735,1749678668109,-152.623497,0.00019671,2]
[365450736,1749678668118,-151.0,0.00019671,2]
[365450737,1749678668127,-815.67,0.00019671,2]
[365450738,1749678668136,-490.0,0.00019671,2]
[365450739,1749678668146,-9371.14,0.00019671,2]
[365450740,1749678668155,-490.0,0.00019671,2]
[365450741,1749678668163,-490.0,0.00019671,2]
[365450742,1749678668172,-858.66,0.00019671,2]
[365450743,1749678668181,-842.96,0.00019671,2]
[365450744,1749678668190,-450.0,0.00019671,2]
[365450745,1749678668199,-151.0,0.00019671,2]
[365450746,1749678668208,-490.0,0.00019671,2]
[365450747,1749678668218,-490.0,0.00019671,2]
[365450748,1749678668228,-900.57,0.00019671,2]
[365450749,1749678668239,-490.0,0.00019671,2]
[365450750,1749678668248,-871.33,0.00019671,2]
[365450751,1749678668257,-490.0,0.00019671,2]
[365450752,1749678668266,-151.0,0.00019671,2]
[365450753,1749678668276,-490.0,0.00019671,2]
[365450754,1749678668285,-490.0,0.00019671,2]
[365450755,1749678668294,-490.0,0.00019671,2]
[365450756,1749678668303,-770.56,0.00019671,2]
[365450757,1749678668312,-1120.3,0.00019671,2]
[365450758,1749678668323,-1607.82,0.00019671,2]
[365450759,1749678668332,-490.0,0.00019671,2]
[365450760,1749678668341,-490.0,0.00019671,2]
[365450761,1749678668350,-1253.5,0.00019671,2]
[365450762,1749678668360,-490.0,0.00019671,2]
[365450763,1749678668370,-490.0,0.00019671,2]
[365450764,1749678668379,-490.0,0.00019671,2]
[365450765,1749678668395,-434.73150868,0.00019671,2]
[365450766,1749678668410,-490.0,0.00019671,2]
[365450767,1749678668422,-490.0,0.00019671,2]
[365450768,1749678668436,-355.83,0.00019671,2]
[365450769,1749678668450,-507.81,0.00019671,2]
[365450770,1749678668465,-490.0,0.00019671,2]
[365450771,1749678668479,-1465.84,0.00019671,2]
[365450772,1749678668492,-490.0,0.00019671,2]
[365450773,1749678668506,-490.0,0.00019671,2]
[365450774,1749678668520,-490.0,0.00019671,2]
[365450775,1749678668534,-1087.66,0.00019671,2]
[365450776,1749678668549,-490.0,0.00019671,2]
[365450777,1749678668563,-490.0,0.00019671,2]
[365450778,1749678668579,-537.25,0.00019671,2]
[365450779,1749678668594,-248.250508,0.00019671,2]
[365450780,1749678668607,-151.0,0.00019671,2]
[365450781,1749678668621,-490.0,0.00019671,2]
[365450782,1749678668636,-151.0,0.00019671,2]
[365450783,1749678668649,-490.0,0.00019671,2]
[365450784,1749678668661,-490.0,0.00019671,2]
[365450785,1749678668673,-224.664134,0.00019671,2]
[365450786,1749678668690,-490.0,0.00019671,2]
[365450787,1749678668701,-151.0,0.00019671,2]
[365450788,1749678668712,-490.0,0.00019671,2]
[365450789,1749678668725,-839.46,0.00019671,2]
[365450790,1749678668739,-490.0,0.00019671,2]
[365450791,1749678668750,-490.0,0.00019671,2]
[365450792,1749678668763,-490.0,0.00019671,2]
[365450793,1749678668775,-490.0,0.00019671,2]
[365450794,1749678668788,-845.5,0.00019671,2]
[365450795,1749678668800,-490.0,0.00019671,2]
[365450796,1749678668813,-490.0,0.00019671,2]
[365450797,1749678668826,-1908.27,0.00019671,2]
[365450798,1749678668839,-490.0,0.00019671,2]
[365450799,1749678668851,-15939.03,0.00019671,2]
[365450800,1749678668863,-490.0,0.00019671,2]
[365450801,1749678668875,-4533.32,0.00019671,2]
[365450802,1749678668887,-490.0,0.00019671,2]
[365450803,1749678668900,-490.0,0.00019671,2]
[365450804,1749678668912,-1681.05,0.00019671,2]
[365450805,1749678668924,-490.0,0.00019671,2]
[365450806,1749678668936,-490.0,0.00019671,2]
[365450807,1749678668948,-490.0,0.00019671,2]
[365450808,1749678668960,-490.0,0.00019671,2]
[365450809,1749678668973,-490.0,0.00019671,2]
[365450810,1749678668985,-2248.91,0.00019671,2]
[365450811,1749678668997,-151.0,0.00019671,2]
[365450812,1749678669010,-490.0,0.00019671,2]
[365450813,1749678669022,-490.0,0.00019671,2]
[365450814,1749678669034,-821.62,0.00019671,2]
[365450815,1749678669047,-1688.58,0.00019671,2]
[365450816,1749678669059,-151.0,0.00019671,2]
[365450817,1749678669072,-490.0,0.00019671,2]
[365450818,1749678669084,-490.0,0.00019671,2]
[365450819,1749678669096,-490.0,0.00019671,2]
[365450820,1749678669109,-490.0,0.00019671,2]
[365450821,1749678669121,-3276.99,0.00019671,2]
[365450822,1749678669133,-490.0,0.00019671,2]
[365450823,1749678669145,-741.03,0.00019671,2]
[365450824,1749678669156,-2634.95,0.00019671,2]
[365450825,1749678669168,-1544.13,0.00019671,2]
[365450826,1749678669179,-490.0,0.00019671,2]
[365450827,1749678669191,-490.0,0.00019671,2]
[365450828,1749678669203,-736.5,0.00019671,2]
[365450829,1749678669215,-151.0,0.00019671,2]
[365450830,1749678669227,-490.0,0.00019671,2]
[365450831,1749678669241,-490.0,0.00019671,2]
[365450832,1749678669256,-490.0,0.00019671,2]
[365450833,1749678669269,-490.0,0.00019671,2]
[365450834,1749678669281,-450.0,0.00019671,2]
[365450835,1749678669294,-151.0,0.00019671,2]
[365450836,1749678669306,-1207.69,0.00019671,2]
[365450837,1749678669319,-151.0,0.00019671,2]
[365450838,1749678669331,-1129.66,0.00019671,2]
[365450839,1749678669343,-490.0,0.00019671,2]
[365450840,1749678669355,-490.0,0.00019671,2]
[365450841,1749678669367,-490.0,0.00019671,2]
[365450842,1749678669380,-490.0,0.00019671,2]
[365450843,1749678669392,-1000.0,0.00019671,2]
[365450844,1749678669404,-490.0,0.00019671,2]
[365450845,1749678669415,-490.0,0.00019671,2]
[365450846,1749678669427,-490.0,0.00019671,2]
[365450847,1749678669439,-641.07,0.00019671,2]
[365450848,1749678669451,-490.0,0.00019671,2]
[365450849,1749678669463,-3317.38,0.00019671,2]
[365450850,1749678669477,-622.12612469,0.00019671,2]
[365450851,1749678669490,-490.0,0.00019671,2]
[365450852,1749678669502,-490.0,0.00019671,2]
[365450853,1749678669515,-761.57,0.00019671,2]
[365450854,1749678669527,-490.0,0.00019671,2]
[365450855,1749678669540,-1688.49,0.00019671,2]
[365450856,1749678669554,-1894.66,0.00019671,2]
[365450857,1749678669565,-680.84,0.00019671,2]
[365450858,1749678669578,-204.673487,0.00019671,2]
[365450859,1749678669590,-151.0,0.00019671,2]
[365450860,1749678669602,-1120.96,0.00019671,2]
[365450861,1749678669614,-273.3923078,0.00019671,2]
[365450862,1749678669626,-1869.14,0.00019671,2]
[365450863,1749678669640,-204.673487,0.00019671,2]
[365450864,1749678669652,-490.0,0.00019671,2]
[365450865,1749678669665,-490.0,0.00019671,2]
[365450866,1749678669677,-490.0,0.00019671,2]
[365450867,1749678669689,-869.87,0.00019671,2]
[365450868,1749678669702,-490.0,0.00019671,2]
[365450869,1749678669714,-1664.43,0.00019671,2]
[365450870,1749678669726,-490.0,0.00019671,2]
[365450871,1749678669739,-3867.72,0.00019671,2]
[365450872,1749678669751,-490.0,0.00019671,2]
[365450873,1749678669764,-490.0,0.00019671,2]
[365450874,1749678669776,-490.0,0.00019671,2]
[365450875,1749678669789,-490.0,0.00019671,2]
[365450876,1749678669800,-490.0,0.00019671,2]
[365450877,1749678669813,-3076.62,0.00019671,2]
[365450878,1749678669825,-490.0,0.00019671,2]
[365450879,1749678669837,-490.0,0.00019671,2]
[365450880,1749678669849,-2330.84,0.00019671,2]
[365450881,1749678669860,-151.0,0.00019671,2]
[365450882,1749678669872,-490.0,0.00019671,2]
[365450883,1749678669883,-490.0,0.00019671,2]
[365450884,1749678669896,-490.0,0.00019671,2]
[365450885,1749678669907,-490.0,0.00019671,2]
[365450886,1749678669920,-3718.72,0.00019671,2]
[365450887,1749678669932,-490.0,0.00019671,2]
[365450888,1749678669944,-490.0,0.00019671,2]
[365450889,1749678669956,-490.0,0.00019671,2]
[365450890,1749678669967,-207.81266648,0.00019671,2]
[365450891,1749678669979,-490.0,0.00019671,2]
[365450892,1749678669991,-490.0,0.00019671,2]
[365450893,1749678670003,-490.0,0.00019671,2]
[365450894,1749678670015,-490.0,0.00019671,2]
[365450895,1749678670027,-556.11,0.00019671,2]
[365450896,1749678670039,-728.76,0.00019671,2]
[365450897,1749678670051,-735.23,0.00019671,2]
[365450898,1749678670063,-490.0,0.00019671,2]
[365450899,1749678670075,-986.92,0.00019671,2]
[365450900,1749678670087,-303.272567,0.00019671,2]
[365450901,1749678670099,-704.54,0.00019671,2]
[365450902,1749678670111,-7050.98,0.00019671,2]
[365450903,1749678670123,-1358.4,0.00019671,2]
[365450904,1749678670134,-4328.28,0.00019671,2]
[365450905,1749678670146,-490.0,0.00019671,2]
[365450906,1749678670157,-490.0,0.00019671,2]
[365450907,1749678670170,-303.272567,0.00019671,2]
[365450908,1749678670183,-490.0,0.00019671,2]
[365450909,1749678670196,-490.0,0.00019671,2]
[365450910,1749678670205,-561.87,0.00019671,2]
[365450911,1749678670214,-1622.083012,0.00019671,2]
[365450912,1749678670223,-490.0,0.00019671,2]
[365450913,1749678670233,-490.0,0.00019671,2]
[365450914,1749678670243,-490.0,0.00019671,2]
[365450915,1749678670252,-3555.95,0.00019671,2]
[365450916,1749678670262,-490.0,0.00019671,2]
[365450917,1749678670271,-151.0,0.00019671,2]
[365450918,1749678670280,-490.0,0.00019671,2]
[365450919,1749678670290,-742.57,0.00019671,2]
[365450920,1749678670299,-490.0,0.00019671,2]
[365450921,1749678670309,-490.0,0.00019671,2]
[365450922,1749678670319,-151.0,0.00019671,2]
[365450923,1749678670328,-151.0,0.00019671,2]
[365450924,1749678670337,-2901.27,0.00019671,2]
[365450925,1749678670347,-151.0,0.00019671,2]
[365450926,1749678670357,-490.0,0.00019671,2]
[365450927,1749678670367,-588.08,0.00019671,2]
[365450928,1749678670376,-490.0,0.00019671,2]
[365450929,1749678670744,-1000.0,0.00019671,2]
[365450930,1749678670772,-600.0,0.000197,7]
[365450931,1749678670782,-1249.85,0.000197,2]
[365450932,1749678670791,-535.81,0.00019701,2]
[365450933,1749678670801,-945.0,0.00019702,2]
[365450934,1749678670810,-2637.0,0.00019702,2]
[365450935,1749678670821,-837.0,0.00019702,2]
[365450936,1749678670831,-7065.0,0.00019702,2]
[365450937,1749678670841,-4086.0,0.00019702,2]
[365450938,1749678670850,-853.0,0.00019702,2]
[365450939,1749678670859,-883.0,0.00019702,2]
[365450940,1749678670868,-155.0,0.00019702,2]
[365450941,1749678670878,-3058.86184255,0.00019717,2]
[365450942,1749678670887,-1000.0,0.00019721,2]
[365450943,1749678670896,-500.0,0.00019721,2]